{"text_format":"1","workbook":"xlsx","n_sheets":4,"sheets":["Доходы","Расходы","Источники","ExportParams"],"not_rendered":{"charts":0,"images":1,"macros":1,"external_links":0,"defined_names":39,"comments":0,"pivot_tables":0},"unopened":[],"bounds":{"document_bytes":16777216,"sheet_cells":100000,"rows_first":2000,"rows_last":500,"rows_between":2000,"halvings":0,"cell_chars":16384,"cell_head_chars":4096},"cells_cut":0,"cells_raw":0,"read":"whole","date_system":"1900"}

{"sheet":"Доходы","index":0,"n_rows":93,"n_cols":8,"rows_kept":93,"cut":false,"hidden":false,"merged":[[10,5,16,5],[0,0,0,3],[1,0,1,3],[3,0,3,3],[5,1,5,3],[6,1,6,3],[9,0,9,3],[10,0,16,0],[10,1,16,1],[10,2,16,2],[10,3,16,3],[10,4,16,4]]}
[null,null,null,null,null,null,null,""]
["ОТЧЕТ ОБ ИСПОЛНЕНИИ БЮДЖЕТА",null,null,null,null,"КОДЫ"]
[null,null,null,null,"  Форма по ОКУД","0503117",null,"C:\\117Y01.txt"]
["на 01.03.2017 г.",null,null,null,"                   Дата","01.03.2017",null,"01.03.2017"]
[null,null,null,null,"             по ОКПО","73276193",null,"117"]
["Наименование финансового органа:","АДМИНИСТРАЦИЯ СЕМИКАРАКОРСКОГО ГОРОДСКОГО ПОСЕЛЕНИЯ",null,null,"    Глава по БК","951",null,"5"]
["Наименование публично-правового образования:","ППО Семикаракорского городского поселения Семикаракорского района",null,null,"по ОКТМО","60651101"]
["Периодичность: годовая",null,null,null,null,""]
["Единица измерения: руб.",null,null,null,"             по ОКЕИ","383",null,"1"]
["                                 1. Доходы бюджета"]
[" Наименование показателя","Код строки","Код дохода по бюджетной классификации","Утвержденные бюджетные назначения","Исполнено","Неисполненные назначения"]
[]
[]
[]
[]
[]
[]
[1,2,3,"4","5","6"]
["Доходы бюджета - всего","010","X",{"$f":"D21+D86","v":74666400},6089433.4900000002,{"$f":"IF(OR(D19=\"-\",E19>=D19),\"-\",D19-IF(E19=\"-\",0,E19))","v":68576966.510000005}]
["в том числе:"]
["НАЛОГОВЫЕ И НЕНАЛОГОВЫЕ ДОХОДЫ","010","000 10000000000000000",{"$f":"D22+D35+D41+D49+D59+D70+D74+D82+D83","v":70016200},6089233.4900000002,{"$f":"IF(OR(D21=\"-\",E21>=D21),\"-\",D21-IF(E21=\"-\",0,E21))","v":63926966.509999998}]
["НАЛОГИ НА ПРИБЫЛЬ, ДОХОДЫ","010","182 10100000000000000",17900000,2186288.4700000002,15713711.529999999]
["Налог на доходы физических лиц","010","182 10102000010000110",17900000,2186288.4700000002,15713711.529999999]
["Налог на доходы физических лиц с доходов, источником которых является налоговый агент, за исключением доходов, в отношении которых исчисление и уплата налога осуществляются в соответствии со статьями 227, 2271 и 228 Налогового кодекса Российской Федерации","010","182 10102010010000110",17600000,2167730.94,15432269.060000001]
["Налог на доходы физических лиц с доходов, источником которых является налоговый агент, за исключением доходов, в отношении которых исчисление и уплата налога осуществляются в соответствии со статьями 227, 227.1 и 228 Налогового кодекса Российской Федерации (сумма платежа (перерасчеты, недоимка и задолженность по соответствующему платежу, в том числе по отмененному))","010","182 10102010011000110","-",2164939.66,"-"]
["Налог на доходы физических лиц с доходов, источником которых является налоговый агент, за исключением доходов, в отношении которых исчисление и уплата налога осуществляются в соответствии со статьями 227, 227.1 и 228 Налогового кодекса Российской Федерации (пени по соответствующему платежу)","010","182 10102010012100110","-",528.84,"-"]
["Налог на доходы физических лиц с доходов, источником которых является налоговый агент, за исключением доходов, в отношении которых исчисление и уплата налога осуществляются в соответствии со статьями 227, 227.1 и 228 Налогового кодекса Российской Федерации (суммы денежных взысканий (штрафов) по соответствующему платежу согласно законодательству Российской Федерации)","010","182 10102010013000110","-",2270.44,"-"]
["Налог на доходы физических лиц с доходов, источником которых является налоговый агент, за исключением доходов, в отношении которых исчисление и уплата налога осуществляются в соответствии со статьями 227, 227.1 и 228 Налогового кодекса Российской Федерации (прочие поступления)","010","182 10102010014000110","-",-8,"-"]
["Налог на доходы физических лиц с доходов, полученных от осуществления деятельности физическими лицами, зарегистрированными в качестве индивидуальных предпринимателей, нотариусов, занимающихся частной практикой, адвокатов, учредивших адвокатские кабинеты, и других лиц, занимающихся частной практикой в соответствии со статьей 227 Налогового кодекса Российской Федерации","010","182 10102020010000110",300000,15180.97,284819.03000000003]
["Налог на доходы физических лиц с доходов, полученных от осуществления деятельности физическими лицами, зарегистрированными в качестве индивидуальных предпринимателей, нотариусов, занимающихся частной практикой, адвокатов, учредивших адвокатские кабинеты, и других лиц, занимающихся частной практикой в соответствии со статьей 227 Налогового кодекса Российской Федерации (сумма платежа (перерасчеты, недоимка и задолженность по соответствующему платежу, в том числе по отмененному))","010","182 10102020011000110","-",14689.61,"-"]
["Налог на доходы физических лиц с доходов, полученных от осуществления деятельности физическими лицами, зарегистрированными в качестве индивидуальных предпринимателей, нотариусов, занимающихся частной практикой, адвокатов, учредивших адвокатские кабинеты, и других лиц, занимающихся частной практикой в соответствии со статьей 227 Налогового кодекса Российской Федерации (суммы денежных взысканий (штрафов) по соответствующему платежу согласно законодательству Российской Федерации)","010","182 10102020013000110","-",491.36,"-"]
["Налог на доходы физических лиц с доходов, полученных физическими лицами в соответствии со статьей 228 Налогового кодекса Российской Федерации","010","182 10102030010000110","-",3376.56,"-"]
["Налог на доходы физических лиц с доходов, полученных физическими лицами в соответствии со статьей 228 Налогового кодекса Российской Федерации (сумма платежа (перерасчеты, недоимка и задолженность по соответствующему платежу, в том числе по отмененному))","010","182 10102030011000110","-",1831.87,"-"]
["Налог на доходы физических лиц с доходов, полученных физическими лицами в соответствии со статьей 228 Налогового кодекса Российской Федерации (суммы денежных взысканий (штрафов) по соответствующему платежу согласно законодательству Российской Федерации)","010","182 10102030013000110","-",1544.69,"-"]
["НАЛОГИ НА ТОВАРЫ (РАБОТЫ, УСЛУГИ), РЕАЛИЗУЕМЫЕ НА ТЕРРИТОРИИ РОССИЙСКОЙ ФЕДЕРАЦИИ","010","100 10300000000000000",{"$f":"D36","v":3887000},359204.54,3527795.46]
["Акцизы по подакцизным товарам (продукции), производимым на территории Российской Федерации","010","100 10302000010000110",{"$f":"D37+D38+D39+D40","v":3887000},359204.54,3527795.46]
["Доходы от уплаты акцизов на дизельное топливо, подлежащие распределению между бюджетами субъектов Российской Федерации и местными бюджетами с учетом установленных дифференцированных нормативов отчислений в местные бюджеты","010","100 10302230010000110",1327400,127454.12,1199945.8799999999]
["Доходы от уплаты акцизов на моторные масла для дизельных и (или) карбюраторных (инжекторных) двигателей, подлежащие распределению между бюджетами субъектов Российской Федерации и местными бюджетами с учетом установленных дифференцированных нормативов отчислений в местные бюджеты","010","100 10302240010000110",13200,1336.68,11863.32]
["Доходы от уплаты акцизов на автомобильный бензин, подлежащие распределению между бюджетами субъектов Российской Федерации и местными бюджетами с учетом установленных дифференцированных нормативов отчислений в местные бюджеты","010","100 10302250010000110",2811900,250267.94,2561632.06]
["Доходы от уплаты акцизов на прямогонный бензин, подлежащие распределению между бюджетами субъектов Российской Федерации и местными бюджетами с учетом установленных дифференцированных нормативов отчислений в местные бюджеты","010","100 10302260010000110",-265500,-19854.2,"-"]
["НАЛОГИ НА СОВОКУПНЫЙ ДОХОД","010","182 10500000000000000",4500000,41384.68,4458615.32]
["Единый сельскохозяйственный налог","010","182 10503000010000110",4500000,41384.68,4458615.32]
["Единый сельскохозяйственный налог","010","182 10503010010000110",4500000,41386.78,4458613.22]
["Единый сельскохозяйственный налог (сумма платежа (перерасчеты, недоимка и задолженность по соответствующему платежу, в том числе по отмененному))","010","182 10503010011000110","-",41328.5,"-"]
["Единый сельскохозяйственный налог (пени по соответствующему платежу)","010","182 10503010012100110","-",8.68,"-"]
["Единый сельскохозяйственный налог (суммы денежных взысканий (штрафов) по соответствующему платежу согласно законодательству Российской Федерации)","010","182 10503010013000110","-",49.6,"-"]
["Единый сельскохозяйственный налог (за налоговые периоды, истекшие до 1 января 2011 года)","010","182 10503020010000110","-",-2.1,"-"]
["Единый сельскохозяйственный налог (за налоговые периоды, истекшие до 1 января 2011 года) (пени по соответствующему платежу)","010","182 10503020012100110","-",-2.1,"-"]
["НАЛОГИ НА ИМУЩЕСТВО","010","182 10600000000000000",37469000,3095025.86,34373974.140000001]
["Налог на имущество физических лиц","010","182 10601000000000110",4324000,176295.93,4147704.07]
["Налог на имущество физических лиц, взимаемый по ставкам, применяемым к объектам налогообложения, расположенным в границах городских поселений","010","182 10601030130000110",4324000,176295.93,4147704.07]
["Налог на имущество физических лиц, взимаемый по ставкам, применяемым к объектам налогообложения, расположенным в границах городских поселений (сумма платежа (перерасчеты, недоимка и задолженность по соответствующему платежу, в том числе по отмененному))","010","182 10601030131000110","-",171019.63,"-"]
["Налог на имущество физических лиц, взимаемый по ставкам, применяемым к объектам налогообложения, расположенным в границах городских поселений (пени по соответствующему платежу)","010","182 10601030132100110","-",5276.3,{"$f":"IF(OR(D53=\"-\",E53>=D53),\"-\",D53-IF(E53=\"-\",0,E53))","v":"-"}]
["Земельный налог","010","182 10606000000000110",33145000,2918729.93,30226270.07]
["Земельный налог с организаций","010","182 10606030000000110",20745000,2593934.7000000002,18151065.300000001]
["Земельный налог с организаций, обладающих земельным участком, расположенным в границах городских поселений","010","182 10606033130000110",20745000,2593934.7000000002,18151065.300000001]
["Земельный налог с физических лиц","010","182 10606040000000110",12400000,324795.23,12075204.77]
["Земельный налог с физических лиц, обладающих земельным участком, расположенным в границах городских поселений","010","182 10606043130000110",12400000,324795.23,12075204.77]
["ДОХОДЫ ОТ ИСПОЛЬЗОВАНИЯ ИМУЩЕСТВА, НАХОДЯЩЕГОСЯ В ГОСУДАРСТВЕННОЙ И МУНИЦИПАЛЬНОЙ СОБСТВЕННОСТИ","010","000 11100000000000000",3496200,135608.63,3360591.37]
["Доходы, получаемые в виде арендной либо иной платы за передачу в возмездное пользование государственного и муниципального имущества (за исключением имущества бюджетных и автономных учреждений, а также имущества государственных и муниципальных унитарных предприятий, в том числе казенных)","010","000 11105000000000120",3476200,130349.29,3345850.71]
["Доходы, получаемые в виде арендной платы за земельные участки, государственная собственность на которые не разграничена, а также средства от продажи права на заключение договоров аренды указанных земельных участков","010","815 11105010000000120",3408800,128101.13,3280698.87]
["Доходы, получаемые в виде арендной платы за земельные участки, государственная собственность на которые не разграничена и которые расположены в границах городских поселений, а также средства от продажи права на заключение договоров аренды указанных земельных участков","010","815 11105013130000120",3408800,128101.13,3280698.87]
["Доходы, получаемые в виде арендной платы за земли после разграничения государственной собственности на землю, а также средства от продажи права на заключение договоров аренды указанных земельных участков (за исключением земельных участков бюджетных и автономных учреждений)","010","951 11105020000000120",67400,"-","-"]
["Доходы, получаемые в виде арендной платы, а также средства от продажи права на заключение договоров аренды за земли, находящиеся в собственности городских поселений (за исключением земельных участков муниципальных бюджетных и автономных учреждений)","010","951 11105025130000120",67400,"-","-"]
["Доходы от сдачи в аренду имущества, составляющего государственную (муниципальную) казну (за исключением земельных участков)","010","951 11105070000000120","-",2248.16,"-"]
["Доходы от сдачи в аренду имущества, составляющего казну городских поселений (за исключением земельных участков)","010","951 11105075130000120","-",2248.16,"-"]
["Прочие доходы от использования имущества и прав, находящихся в государственной и муниципальной собственности (за исключением имущества бюджетных и автономных учреждений, а также имущества государственных и муниципальных унитарных предприятий, в том числе казенных)","010","951 11109000000000120",20000,5259.34,14740.66]
["Прочие поступления от использования имущества, находящегося в государственной и муниципальной собственности (за исключением имущества бюджетных и автономных учреждений, а также имущества государственных и муниципальных унитарных предприятий, в том числе казенных)","010","951 11109040000000120",20000,5259.34,14740.66]
["Прочие поступления от использования имущества, находящегося в собственности городских поселений (за исключением имущества муниципальных бюджетных и автономных учреждений, а также имущества муниципальных унитарных предприятий, в том числе казенных)","010","951 11109045130000120",20000,5259.34,14740.66]
["ДОХОДЫ ОТ ОКАЗАНИЯ ПЛАТНЫХ УСЛУГ (РАБОТ) И КОМПЕНСАЦИИ ЗАТРАТ ГОСУДАРСТВА","010","953 11300000000000000",200000,1195.3399999999999,198804.66]
["Доходы от оказания платных услуг (работ)","010","953 11301000000000130",200000,1195.3399999999999,198804.66]
["Прочие доходы от оказания платных услуг (работ)","010","953 11301990000000130",200000,1195.3399999999999,198804.66]
["Прочие доходы от оказания платных услуг (работ) получателями средств бюджетов городских поселений","010","953 11301995130000130",200000,1195.3399999999999,198804.66]
["ДОХОДЫ ОТ ПРОДАЖИ МАТЕРИАЛЬНЫХ И НЕМАТЕРИАЛЬНЫХ АКТИВОВ","010","000 11400000000000000",2300000,248406.38,2051593.62]
["Доходы от продажи земельных участков, находящихся в государственной и муниципальной собственности","010","000 11406000000000430",2300000,248406.38,2051593.62]
["Доходы от продажи земельных участков, государственная собственность на которые не разграничена","010","902 11406010000000430",800000,246076.38,553923.62]
["Доходы от продажи земельных участков, государственная собственность на которые не разграничена и которые расположены в границах городских поселений","010","902 11406013130000430",800000,246076.38,553923.62]
["Доходы от продажи земельных участков, государственная собственность на которые разграничена (за исключением земельных участков бюджетных и автономных учреждений)","010","951 11406020000000430",1500000,2330,1497670]
["Доходы от продажи земельных участков, находящихся в собственности городских поселений (за исключением земельных участков муниципальных бюджетных и автономных учреждений)","010","951 11406025130000430",1500000,2330,1497670]
["ШТРАФЫ, САНКЦИИ, ВОЗМЕЩЕНИЕ УЩЕРБА","010","802 11600000000000000",28000,2300,25700]
["Денежные взыскания (штрафы), установленные законами субъектов Российской Федерации за несоблюдение муниципальных правовых актов","010","802 11651000020000140",28000,2300,25700]
["Денежные взыскания (штрафы), установленные законами субъектов Российской Федерации за несоблюдение муниципальных правовых актов, зачисляемые в бюджеты поселений","010","802 11651040020000140",28000,2300,25700]
["ПРОЧИЕ НЕНАЛОГОВЫЕ ДОХОДЫ","010","951 11700000000000000",236000,19819.59,216180.41]
["Прочие неналоговые доходы","010","951 11705000000000180",236000,19819.59,216180.41]
["Прочие неналоговые доходы бюджетов городских поселений","010","951 11705050130000180",236000,19819.59,{"$f":"IF(OR(D85=\"-\",E85>=D85),\"-\",D85-IF(E85=\"-\",0,E85))","v":216180.41}]
["БЕЗВОЗМЕЗДНЫЕ ПОСТУПЛЕНИЯ","010","951 20000000000000000",4650200,200,4650000]
["БЕЗВОЗМЕЗДНЫЕ ПОСТУПЛЕНИЯ ОТ ДРУГИХ БЮДЖЕТОВ БЮДЖЕТНОЙ СИСТЕМЫ РОССИЙСКОЙ ФЕДЕРАЦИИ","010","951 20200000000000000",4650200,200,4650000]
["Субвенции бюджетам бюджетной системы Российской Федерации","010","951 20230000000000151",200,200,"-"]
["Субвенции местным бюджетам на выполнение передаваемых полномочий субъектов Российской Федерации","010","951 20230024000000151",200,200,"-"]
["Субвенции бюджетам городских поселений на выполнение передаваемых полномочий субъектов Российской Федерации","010","951 20230024130000151",200,200,"-"]
["Иные межбюджетные трансферты","010","951 20240000000000151",4650000,"-","-"]
["Прочие межбюджетные трансферты, передаваемые бюджетам","010","951 20249999000000151",4650000,"-","-"]
["Прочие межбюджетные трансферты, передаваемые бюджетам городских поселений","010","951 20249999130000151",4650000,"-","-"]

{"sheet":"Расходы","index":1,"n_rows":170,"n_cols":6,"rows_kept":170,"cut":false,"hidden":false,"merged":[[3,5,8,5],[1,0,1,3],[3,0,10,0],[3,1,10,1],[3,2,8,2],[3,3,10,3],[3,4,8,4]]}
[]
["                          2. Расходы бюджета",null,null,null,null,"Форма 0503117  с.2"]
[]
[" Наименование показателя","Код строки","Код расхода по бюджетной классификации","Утвержденные бюджетные назначения","Исполнено","Неисполненные назначения"]
[]
[]
[]
[]
[]
[]
[]
[1,2,3,"4","5","6"]
["Расходы бюджета - всего","200","x",72419349.319999993,7778783.21,{"$f":"IF(OR(D13=\"-\",E13>=D13),\"-\",D13-IF(E13=\"-\",0,E13))","v":64640566.109999992}]
["в том числе:"]
["ОБЩЕГОСУДАРСТВЕННЫЕ ВОПРОСЫ","200","000 0100 0000000000 000 ",17154555.699999999,1871631.71,{"$f":"IF(OR(D15=\"-\",E15>=D15),\"-\",D15-IF(E15=\"-\",0,E15))","v":15282923.989999998}]
["Расходы на выплаты персоналу в целях обеспечения выполнения функций государственными (муниципальными) органами, казенными учреждениями, органами управления государственными внебюджетными фондами","200","000 0100 0000000000 100 ",12902305.5,1342495.16,11559810.34]
["Расходы на выплаты персоналу государственных (муниципальных) органов","200","000 0100 0000000000 120 ",12902305.5,1342495.16,11559810.34]
["Фонд оплаты труда государственных (муниципальных) органов","200","000 0100 0000000000 121 ",8819800,866034.96,7953765.04]
["Иные выплаты персоналу государственных (муниципальных) органов, за исключением фонда оплаты труда","200","000 0100 0000000000 122 ",754600,219318.77,535281.23]
["Взносы по обязательному социальному страхованию на выплаты денежного содержания и иные выплаты работникам государственных (муниципальных) органов","200","000 0100 0000000000 129 ",3327905.5,257141.43,3070764.07]
["Закупка товаров, работ и услуг для обеспечения государственных (муниципальных) нужд","200","000 0100 0000000000 200 ",3463850.2,259758.99,3204091.21]
["Иные закупки товаров, работ и услуг для обеспечения государственных (муниципальных) нужд","200","000 0100 0000000000 240 ",3463850.2,259758.99,3204091.21]
["Прочая закупка товаров, работ и услуг для обеспечения государственных (муниципальных) нужд","200","000 0100 0000000000 244 ",3463850.2,259758.99,3204091.21]
["Социальное обеспечение и иные выплаты населению","200","000 0100 0000000000 300 ",107200,18552.740000000002,88647.26]
["Социальные выплаты гражданам, кроме публичных нормативных социальных выплат","200","000 0100 0000000000 320 ",107200,18552.740000000002,88647.26]
["Пособия, компенсации и иные социальные выплаты гражданам, кроме публичных нормативных обязательств","200","000 0100 0000000000 321 ",107200,18552.740000000002,88647.26]
["Иные бюджетные ассигнования","200","000 0100 0000000000 800 ",681200,250824.82,430375.18]
["Исполнение судебных актов","200","000 0100 0000000000 830 ",200000,200000,"-"]
["Исполнение судебных актов Российской Федерации и мировых соглашений по возмещению вреда, причиненного в результате незаконных действий (бездействия) органов государственной власти (государственных органов), органов местного самоуправления либо должностных лиц этих органов, а также в результате деятельности учреждений","200","000 0100 0000000000 831 ",200000,200000,"-"]
["Уплата налогов, сборов и иных платежей","200","000 0100 0000000000 850 ",181200,50824.82,130375.18]
["Уплата налога на имущество организаций и земельного налога","200","000 0100 0000000000 851 ",45000,"-","-"]
["Уплата прочих налогов, сборов","200","000 0100 0000000000 852 ",46200,331.91,45868.09]
["Уплата иных платежей","200","000 0100 0000000000 853 ",90000,50492.91,39507.089999999997]
["Резервные средства","200","000 0100 0000000000 870 ",300000,"-","-"]
["Функционирование высшего должностного лица субъекта Российской Федерации и муниципального образования","200","000 0102 0000000000 000 ",1082600,89242.81,993357.19]
["Расходы на выплаты персоналу в целях обеспечения выполнения функций государственными (муниципальными) органами, казенными учреждениями, органами управления государственными внебюджетными фондами","200","000 0102 0000000000 100 ",1082600,89242.81,993357.19]
["Расходы на выплаты персоналу государственных (муниципальных) органов","200","000 0102 0000000000 120 ",1082600,89242.81,993357.19]
["Фонд оплаты труда государственных (муниципальных) органов","200","000 0102 0000000000 121 ",796000,73413.83,722586.17]
["Иные выплаты персоналу государственных (муниципальных) органов, за исключением фонда оплаты труда","200","000 0102 0000000000 122 ",50800,"-","-"]
["Взносы по обязательному социальному страхованию на выплаты денежного содержания и иные выплаты работникам государственных (муниципальных) органов","200","000 0102 0000000000 129 ",235800,15828.98,219971.02]
["Функционирование законодательных (представительных) органов государственной власти и представительных органов муниципальных образований","200","000 0103 0000000000 000 ",7000,"-","-"]
["Закупка товаров, работ и услуг для обеспечения государственных (муниципальных) нужд","200","000 0103 0000000000 200 ",7000,"-","-"]
["Иные закупки товаров, работ и услуг для обеспечения государственных (муниципальных) нужд","200","000 0103 0000000000 240 ",7000,"-","-"]
["Прочая закупка товаров, работ и услуг для обеспечения государственных (муниципальных) нужд","200","000 0103 0000000000 244 ",7000,"-","-"]
["Функционирование Правительства Российской Федерации, высших исполнительных органов государственной власти субъектов Российской Федерации, местных администраций","200","000 0104 0000000000 000 ",14378780.699999999,1468508.25,12910272.449999999]
["Расходы на выплаты персоналу в целях обеспечения выполнения функций государственными (муниципальными) органами, казенными учреждениями, органами управления государственными внебюджетными фондами","200","000 0104 0000000000 100 ",11819705.5,1253252.3500000001,10566453.15]
["Расходы на выплаты персоналу государственных (муниципальных) органов","200","000 0104 0000000000 120 ",11819705.5,1253252.3500000001,{"$f":"IF(OR(D47=\"-\",E47>=D47),\"-\",D47-IF(E47=\"-\",0,E47))","v":10566453.15}]
["Фонд оплаты труда государственных (муниципальных) органов","200","000 0104 0000000000 121 ",8023800,792621.13,7231178.8700000001]
["Иные выплаты персоналу государственных (муниципальных) органов, за исключением фонда оплаты труда","200","000 0104 0000000000 122 ",703800,219318.77,484481.23]
["Взносы по обязательному социальному страхованию на выплаты денежного содержания и иные выплаты работникам государственных (муниципальных) органов","200","000 0104 0000000000 129 ",3092105.5,241312.45,2850793.05]
["Закупка товаров, работ и услуг для обеспечения государственных (муниципальных) нужд","200","000 0104 0000000000 200 ",2522275.2000000002,214923.99,2307351.21]
["Иные закупки товаров, работ и услуг для обеспечения государственных (муниципальных) нужд","200","000 0104 0000000000 240 ",2522275.2000000002,214923.99,2307351.21]
["Прочая закупка товаров, работ и услуг для обеспечения государственных (муниципальных) нужд","200","000 0104 0000000000 244 ",2522275.2000000002,214923.99,2307351.21]
["Иные бюджетные ассигнования","200","000 0104 0000000000 800 ",36800,331.91,36468.089999999997]
["Уплата налогов, сборов и иных платежей","200","000 0104 0000000000 850 ",36800,331.91,36468.089999999997]
["Уплата прочих налогов, сборов","200","000 0104 0000000000 852 ",36800,331.91,36468.089999999997]
["Резервные фонды","200","000 0111 0000000000 000 ",300000,"-","-"]
["Иные бюджетные ассигнования","200","000 0111 0000000000 800 ",300000,"-","-"]
["Резервные средства","200","000 0111 0000000000 870 ",300000,"-","-"]
["Другие общегосударственные вопросы","200","000 0113 0000000000 000 ",1386175,313880.65000000002,1072294.3500000001]
["Закупка товаров, работ и услуг для обеспечения государственных (муниципальных) нужд","200","000 0113 0000000000 200 ",934575,44835,889740]
["Иные закупки товаров, работ и услуг для обеспечения государственных (муниципальных) нужд","200","000 0113 0000000000 240 ",934575,44835,889740]
["Прочая закупка товаров, работ и услуг для обеспечения государственных (муниципальных) нужд","200","000 0113 0000000000 244 ",934575,44835,889740]
["Социальное обеспечение и иные выплаты населению","200","000 0113 0000000000 300 ",107200,18552.740000000002,88647.26]
["Социальные выплаты гражданам, кроме публичных нормативных социальных выплат","200","000 0113 0000000000 320 ",107200,18552.740000000002,88647.26]
["Пособия, компенсации и иные социальные выплаты гражданам, кроме публичных нормативных обязательств","200","000 0113 0000000000 321 ",107200,18552.740000000002,88647.26]
["Иные бюджетные ассигнования","200","000 0113 0000000000 800 ",344400,250492.91,93907.09]
["Исполнение судебных актов","200","000 0113 0000000000 830 ",200000,200000,"-"]
["Исполнение судебных актов Российской Федерации и мировых соглашений по возмещению вреда, причиненного в результате незаконных действий (бездействия) органов государственной власти (государственных органов), органов местного самоуправления либо должностных лиц этих органов, а также в результате деятельности учреждений","200","000 0113 0000000000 831 ",200000,200000,"-"]
["Уплата налогов, сборов и иных платежей","200","000 0113 0000000000 850 ",144400,50492.91,93907.09]
["Уплата налога на имущество организаций и земельного налога","200","000 0113 0000000000 851 ",45000,"-","-"]
["Уплата прочих налогов, сборов","200","000 0113 0000000000 852 ",9400,"-","-"]
["Уплата иных платежей","200","000 0113 0000000000 853 ",90000,50492.91,39507.089999999997]
["НАЦИОНАЛЬНАЯ БЕЗОПАСНОСТЬ И ПРАВООХРАНИТЕЛЬНАЯ ДЕЯТЕЛЬНОСТЬ","200","000 0300 0000000000 000 ",1289600,182900,1106700]
["Закупка товаров, работ и услуг для обеспечения государственных (муниципальных) нужд","200","000 0300 0000000000 200 ",411700,"-","-"]
["Иные закупки товаров, работ и услуг для обеспечения государственных (муниципальных) нужд","200","000 0300 0000000000 240 ",411700,"-","-"]
["Прочая закупка товаров, работ и услуг для обеспечения государственных (муниципальных) нужд","200","000 0300 0000000000 244 ",411700,"-","-"]
["Межбюджетные трансферты","200","000 0300 0000000000 500 ",877900,182900,695000]
["Иные межбюджетные трансферты","200","000 0300 0000000000 540 ",877900,182900,{"$f":"IF(OR(D79=\"-\",E79>=D79),\"-\",D79-IF(E79=\"-\",0,E79))","v":695000}]
["Защита населения и территории от чрезвычайных ситуаций природного и техногенного характера, гражданская оборона","200","000 0309 0000000000 000 ",1289600,182900,1106700]
["Закупка товаров, работ и услуг для обеспечения государственных (муниципальных) нужд","200","000 0309 0000000000 200 ",411700,"-","-"]
["Иные закупки товаров, работ и услуг для обеспечения государственных (муниципальных) нужд","200","000 0309 0000000000 240 ",411700,"-","-"]
["Прочая закупка товаров, работ и услуг для обеспечения государственных (муниципальных) нужд","200","000 0309 0000000000 244 ",411700,"-","-"]
["Межбюджетные трансферты","200","000 0309 0000000000 500 ",877900,182900,695000]
["Иные межбюджетные трансферты","200","000 0309 0000000000 540 ",877900,182900,695000]
["НАЦИОНАЛЬНАЯ ЭКОНОМИКА","200","000 0400 0000000000 000 ",7420311.1299999999,751796.68,6668514.4500000002]
["Закупка товаров, работ и услуг для обеспечения государственных (муниципальных) нужд","200","000 0400 0000000000 200 ",7420311.1299999999,751796.68,6668514.4500000002]
["Иные закупки товаров, работ и услуг для обеспечения государственных (муниципальных) нужд","200","000 0400 0000000000 240 ",7420311.1299999999,751796.68,6668514.4500000002]
["Прочая закупка товаров, работ и услуг для обеспечения государственных (муниципальных) нужд","200","000 0400 0000000000 244 ",7420311.1299999999,751796.68,6668514.4500000002]
["Дорожное хозяйство (дорожные фонды)","200","000 0409 0000000000 000 ",7170311.1299999999,751796.68,6418514.4500000002]
["Закупка товаров, работ и услуг для обеспечения государственных (муниципальных) нужд","200","000 0409 0000000000 200 ",7170311.1299999999,751796.68,6418514.4500000002]
["Иные закупки товаров, работ и услуг для обеспечения государственных (муниципальных) нужд","200","000 0409 0000000000 240 ",7170311.1299999999,751796.68,6418514.4500000002]
["Прочая закупка товаров, работ и услуг для обеспечения государственных (муниципальных) нужд","200","000 0409 0000000000 244 ",7170311.1299999999,751796.68,6418514.4500000002]
["Другие вопросы в области национальной экономики","200","000 0412 0000000000 000 ",250000,"-","-"]
["Закупка товаров, работ и услуг для обеспечения государственных (муниципальных) нужд","200","000 0412 0000000000 200 ",250000,"-","-"]
["Иные закупки товаров, работ и услуг для обеспечения государственных (муниципальных) нужд","200","000 0412 0000000000 240 ",250000,"-","-"]
["Прочая закупка товаров, работ и услуг для обеспечения государственных (муниципальных) нужд","200","000 0412 0000000000 244 ",250000,"-","-"]
["ЖИЛИЩНО-КОММУНАЛЬНОЕ ХОЗЯЙСТВО","200","000 0500 0000000000 000 ",31113982.489999998,3290745.86,27823236.629999999]
["Расходы на выплаты персоналу в целях обеспечения выполнения функций государственными (муниципальными) органами, казенными учреждениями, органами управления государственными внебюджетными фондами","200","000 0500 0000000000 100 ",7629500,572772.64,7056727.3600000003]
["Расходы на выплаты персоналу казенных учреждений","200","000 0500 0000000000 110 ",7629500,572772.64,7056727.3600000003]
["Фонд оплаты труда учреждений","200","000 0500 0000000000 111 ",5836900,463185.98,5373714.0199999996]
["Взносы по обязательному социальному страхованию на выплаты по оплате труда работников и иные выплаты работникам учреждений","200","000 0500 0000000000 119 ",1792600,109586.66,1683013.34]
["Закупка товаров, работ и услуг для обеспечения государственных (муниципальных) нужд","200","000 0500 0000000000 200 ",23186082.489999998,2713611.19,20472471.299999997]
["Иные закупки товаров, работ и услуг для обеспечения государственных (муниципальных) нужд","200","000 0500 0000000000 240 ",23186082.489999998,2713611.19,20472471.299999997]
["Прочая закупка товаров, работ и услуг для обеспечения государственных (муниципальных) нужд","200","000 0500 0000000000 244 ",23186082.489999998,2713611.19,20472471.299999997]
["Межбюджетные трансферты","200","000 0500 0000000000 500 ",70000,"-","-"]
["Иные межбюджетные трансферты","200","000 0500 0000000000 540 ",70000,"-","-"]
["Иные бюджетные ассигнования","200","000 0500 0000000000 800 ",228400,4362.03,224037.97]
["Уплата налогов, сборов и иных платежей","200","000 0500 0000000000 850 ",228400,4362.03,224037.97]
["Уплата налога на имущество организаций и земельного налога","200","000 0500 0000000000 851 ",192200,4160,188040]
["Уплата прочих налогов, сборов","200","000 0500 0000000000 852 ",26500,143,{"$f":"IF(OR(D111=\"-\",E111>=D111),\"-\",D111-IF(E111=\"-\",0,E111))","v":26357}]
["Уплата иных платежей","200","000 0500 0000000000 853 ",9700,59.03,9640.9699999999993]
["Жилищное хозяйство","200","000 0501 0000000000 000 ",33400,2834.8,30565.200000000001]
["Закупка товаров, работ и услуг для обеспечения государственных (муниципальных) нужд","200","000 0501 0000000000 200 ",33400,2834.8,30565.200000000001]
["Иные закупки товаров, работ и услуг для обеспечения государственных (муниципальных) нужд","200","000 0501 0000000000 240 ",33400,2834.8,30565.200000000001]
["Прочая закупка товаров, работ и услуг для обеспечения государственных (муниципальных) нужд","200","000 0501 0000000000 244 ",33400,2834.8,30565.200000000001]
["Коммунальное хозяйство","200","000 0502 0000000000 000 ",669400,916,668484]
["Закупка товаров, работ и услуг для обеспечения государственных (муниципальных) нужд","200","000 0502 0000000000 200 ",400000,"-","-"]
["Иные закупки товаров, работ и услуг для обеспечения государственных (муниципальных) нужд","200","000 0502 0000000000 240 ",400000,"-","-"]
["Прочая закупка товаров, работ и услуг для обеспечения государственных (муниципальных) нужд","200","000 0502 0000000000 244 ",400000,"-","-"]
["Межбюджетные трансферты","200","000 0502 0000000000 500 ",70000,"-","-"]
["Иные межбюджетные трансферты","200","000 0502 0000000000 540 ",70000,"-","-"]
["Иные бюджетные ассигнования","200","000 0502 0000000000 800 ",199400,916,198484]
["Уплата налогов, сборов и иных платежей","200","000 0502 0000000000 850 ",199400,916,198484]
["Уплата налога на имущество организаций и земельного налога","200","000 0502 0000000000 851 ",175600,916,174684]
["Уплата прочих налогов, сборов","200","000 0502 0000000000 852 ",23800,"-","-"]
["Благоустройство","200","000 0503 0000000000 000 ",30411182.489999998,3286995.06,27124187.43]
["Расходы на выплаты персоналу в целях обеспечения выполнения функций государственными (муниципальными) органами, казенными учреждениями, органами управления государственными внебюджетными фондами","200","000 0503 0000000000 100 ",7629500,572772.64,7056727.3600000003]
["Расходы на выплаты персоналу казенных учреждений","200","000 0503 0000000000 110 ",7629500,572772.64,7056727.3600000003]
["Фонд оплаты труда учреждений","200","000 0503 0000000000 111 ",5836900,463185.98,5373714.0199999996]
["Взносы по обязательному социальному страхованию на выплаты по оплате труда работников и иные выплаты работникам учреждений","200","000 0503 0000000000 119 ",1792600,109586.66,1683013.34]
["Закупка товаров, работ и услуг для обеспечения государственных (муниципальных) нужд","200","000 0503 0000000000 200 ",22752682.489999998,2710776.39,20041906.099999998]
["Иные закупки товаров, работ и услуг для обеспечения государственных (муниципальных) нужд","200","000 0503 0000000000 240 ",22752682.489999998,2710776.39,20041906.099999998]
["Прочая закупка товаров, работ и услуг для обеспечения государственных (муниципальных) нужд","200","000 0503 0000000000 244 ",22752682.489999998,2710776.39,20041906.099999998]
["Иные бюджетные ассигнования","200","000 0503 0000000000 800 ",29000,3446.03,25553.97]
["Уплата налогов, сборов и иных платежей","200","000 0503 0000000000 850 ",29000,3446.03,25553.97]
["Уплата налога на имущество организаций и земельного налога","200","000 0503 0000000000 851 ",16600,3244,13356]
["Уплата прочих налогов, сборов","200","000 0503 0000000000 852 ",2700,143,2557]
["Уплата иных платежей","200","000 0503 0000000000 853 ",9700,59.03,9640.9699999999993]
["КУЛЬТУРА, КИНЕМАТОГРАФИЯ","200","000 0800 0000000000 000 ",15140200,1681465.06,13458734.939999999]
["Закупка товаров, работ и услуг для обеспечения государственных (муниципальных) нужд","200","000 0800 0000000000 200 ",15000,"-","-"]
["Иные закупки товаров, работ и услуг для обеспечения государственных (муниципальных) нужд","200","000 0800 0000000000 240 ",15000,"-","-"]
["Прочая закупка товаров, работ и услуг для обеспечения государственных (муниципальных) нужд","200","000 0800 0000000000 244 ",15000,"-",{"$f":"IF(OR(D143=\"-\",E143>=D143),\"-\",D143-IF(E143=\"-\",0,E143))","v":"-"}]
["Предоставление субсидий бюджетным, автономным учреждениям и иным некоммерческим организациям","200","000 0800 0000000000 600 ",15125200,1681465.06,13443734.939999999]
["Субсидии бюджетным учреждениям","200","000 0800 0000000000 610 ",15125200,1681465.06,13443734.939999999]
["Субсидии бюджетным учреждениям на финансовое обеспечение государственного (муниципального) задания на оказание государственных (муниципальных) услуг (выполнение работ)","200","000 0800 0000000000 611 ",15125200,1681465.06,13443734.939999999]
["Культура","200","000 0801 0000000000 000 ",15125200,1681465.06,13443734.939999999]
["Предоставление субсидий бюджетным, автономным учреждениям и иным некоммерческим организациям","200","000 0801 0000000000 600 ",15125200,1681465.06,13443734.939999999]
["Субсидии бюджетным учреждениям","200","000 0801 0000000000 610 ",15125200,1681465.06,13443734.939999999]
["Субсидии бюджетным учреждениям на финансовое обеспечение государственного (муниципального) задания на оказание государственных (муниципальных) услуг (выполнение работ)","200","000 0801 0000000000 611 ",15125200,1681465.06,13443734.939999999]
["Другие вопросы в области культуры, кинематографии","200","000 0804 0000000000 000 ",15000,"-","-"]
["Закупка товаров, работ и услуг для обеспечения государственных (муниципальных) нужд","200","000 0804 0000000000 200 ",15000,"-","-"]
["Иные закупки товаров, работ и услуг для обеспечения государственных (муниципальных) нужд","200","000 0804 0000000000 240 ",15000,"-","-"]
["Прочая закупка товаров, работ и услуг для обеспечения государственных (муниципальных) нужд","200","000 0804 0000000000 244 ",15000,"-","-"]
["СРЕДСТВА МАССОВОЙ ИНФОРМАЦИИ","200","000 1200 0000000000 000 ",300000,"-","-"]
["Закупка товаров, работ и услуг для обеспечения государственных (муниципальных) нужд","200","000 1200 0000000000 200 ",300000,"-","-"]
["Иные закупки товаров, работ и услуг для обеспечения государственных (муниципальных) нужд","200","000 1200 0000000000 240 ",300000,"-","-"]
["Прочая закупка товаров, работ и услуг для обеспечения государственных (муниципальных) нужд","200","000 1200 0000000000 244 ",300000,"-","-"]
["Телевидение и радиовещание","200","000 1201 0000000000 000 ",300000,"-","-"]
["Закупка товаров, работ и услуг для обеспечения государственных (муниципальных) нужд","200","000 1201 0000000000 200 ",300000,"-","-"]
["Иные закупки товаров, работ и услуг для обеспечения государственных (муниципальных) нужд","200","000 1201 0000000000 240 ",300000,"-","-"]
["Прочая закупка товаров, работ и услуг для обеспечения государственных (муниципальных) нужд","200","000 1201 0000000000 244 ",300000,"-","-"]
["ОБСЛУЖИВАНИЕ ГОСУДАРСТВЕННОГО И МУНИЦИПАЛЬНОГО ДОЛГА","200","000 1300 0000000000 000 ",700,243.9,456.1]
["Обслуживание государственного (муниципального) долга","200","000 1300 0000000000 700 ",700,243.9,456.1]
["Обслуживание муниципального долга","200","000 1300 0000000000 730 ",700,243.9,456.1]
["Обслуживание государственного внутреннего и муниципального долга","200","000 1301 0000000000 000 ",700,243.9,456.1]
["Обслуживание государственного (муниципального) долга","200","000 1301 0000000000 700 ",700,243.9,456.1]
["Обслуживание муниципального долга","200","000 1301 0000000000 730 ",700,243.9,456.1]
[]
["Результат исполнения бюджета (дефицит / профицит)","450","x",1631050.68,-1689349.72,"x                    "]

{"sheet":"Источники","index":2,"n_rows":27,"n_cols":6,"rows_kept":27,"cut":false,"hidden":false,"merged":[[0,0,0,5],[1,0,1,5],[3,0,9,0],[3,1,9,1],[3,2,9,2],[3,3,9,3],[3,4,9,4],[3,5,9,5]]}
["             Форма 0503117  с.3"]
["                    3. Источники финансирования дефицита бюджета"]
[]
[" Наименование показателя","Код строки","Код источника финансирования дефицита бюджета по бюджетной классификации","Утвержденные бюджетные назначения","Исполнено","Неисполненные назначения"]
[]
[]
[]
[]
[]
[]
[1,2,3,"4","5","6"]
["Источники финансирования дефицита бюджета - всего","500","x",2402949.3199999998,1689349.72,"x"]
["в том числе:"]
["источники внутреннего финансирования бюджета","520","x",-199800,"-",-199800]
["из них:"]
["Бюджетные кредиты от других бюджетов бюджетной системы Российской Федерации","520","951 01030000000000000",-199800,"-",-199800]
["Бюджетные кредиты от других бюджетов бюджетной системы Российской Федерации в валюте Российской Федерации","520","951 01030100000000000",-199800,"-",-199800]
["Погашение бюджетами городских поселений кредитов от других бюджетов бюджетной системы Российской Федерации в валюте Российской Федерации","520","951 01030100130000810",-199800,"-",-199800]
["источники внешнего финансирования бюджета","620","x","-","-","-"]
["Изменение остатков средств","700","*** 01000000000000000",2602749.3199999998,1689349.72,913399.6]
["Изменение остатков средств на счетах по учету средств бюджета","700","*** 01050000000000000",2602749.3199999998,1689349.72,913399.6]
["Изменение иных финансовых активов за счет средств, размещенных в депозиты в валюте Российской Федерации и иностранной валюте в кредитных организациях","700","*** 01060000000000000","-","-","-"]
["увеличение остатков средств","710","951 01050000000000500",-70016400,-6089433.4900000002,"x                    "]
["Изменение остатков средств на счетах по учету средств бюджетов","710","951 01050000000000000",-70016400,-6089433.4900000002,"x                    "]
["Увеличение прочих остатков денежных средств бюджетов городских поселений","710","951 01050201130000510",-70016400,-6089433.4900000002,"x                    "]
["уменьшение остатков средств","720","951 01050000000000600",72619149.319999993,7778783.21,"x                    "]
["Уменьшение прочих остатков денежных средств бюджетов городских поселений","720","951 01050201130000610",72619149.319999993,7778783.21,"x                    "]

{"sheet":"ExportParams","index":3,"n_rows":3,"n_cols":2,"rows_kept":3,"cut":false,"hidden":true,"merged":[]}
["EXPORT_SRC_KIND","5"]
["EXPORT_PARAM_SRC_KIND","3"]
["EXPORT_SRC_CODE","58035-08"]